Cogmind - Beta 11 @@@ ROGUE MODE // 2022.04.13 @ 17:22:07 Player: CrashCricket Result: Destroyed self with Mini Grenade Launcher Performance ------------- Evolutions (1) 500 Regions Visited (3) 600 Robots Destroyed (31) 155 Value Destroyed (812) 812 Prototype IDs (3) 60 Alien Tech Used (0) 0 Bonus (43) 43 TOTAL SCORE: 2170 Bonus ------- High Alert Combat Kills 43 Cogmind --------- Core Integrity 0/400 Matter 105/300 Energy 250/250 System Corruption 0% Temperature Cool (0) Movement Rolling (115) Ox1 Location -9/Storage Parts ------- > --- POWER (1) -------- Ion Engine > --- PROPULSION (4) --- Compact Wheel > --- UTILITY (2) ------ Large Storage Unit > --- WEAPON (2) ------- Mini Grenade Launcher > --- INVENTORY (15) --- Huge Storage Unit Terrain Scan Processor Drone Bay (2/2) Drone Bay (2/2) Drone Bay (2/2) Drone Bay (2/2) Drone Bay (2/2) Drone Bay (2/2) Drone Bay (2/2) EM Pulse Gun Improved EM Shotgun Small Laser Beam Rifle Beam Rifle Mini Grenade Launcher Peak State ------------ > --- POWER ------------ Light Ion Engine > --- PROPULSION ------- Compact Wheel > --- UTILITY ---------- Large Storage Unit Drone Bay > --- WEAPON ----------- Rocket Launcher Mini Grenade Launcher > --- INVENTORY -------- Huge Storage Unit Terrain Scan Processor Drone Bay Drone Bay Drone Bay EM Pulse Gun Improved EM Shotgun Small Laser Beam Rifle Mini Grenade Launcher Mini Grenade Launcher [Rating: 14] Favorites ----------- Power Light Ion Engine Engine Light Ion Engine Propulsion Aluminum Leg Treads Light Treads Leg Aluminum Leg Wheel Compact Wheel Utility Large Storage Unit Device Structural Scanner Storage Large Storage Unit Weapon Mini Grenade Launcher Energy Gun EM Pulse Gun Energy Cannon Beam Cannon Launcher Mini Grenade Launcher Build | -11 -10 -9 -9 ------- Run | Scr Mat Mat Sto Slots Evolved 2 | . . 2 . Power . | . . . . Propulsion 2 | . . 2 . Utility . | . . . . Weapon . | . . . . Parts Attached 29 | 4 6 10 9 Power 5 | . 1 1 3 Engine 5 | . 1 1 3 Core . | . . . . Reactor . | . . . . Propulsion 6 | 2 . 3 1 Treads 2 | . . 2 . Leg 3 | 2 . 1 . Wheel 1 | . . . 1 Hover . | . . . . Flight . | . . . . Utility 6 | . 4 1 1 Device 2 | . 1 . 1 Storage 4 | . 3 1 . Processor . | . . . . Hackware . | . . . . Protection . | . . . . Artifact . | . . . . Weapon 12 | 2 1 5 4 Energy Gun 7 | 2 . 5 . Energy Cannon 1 | . 1 . . Ballistic Gun . | . . . . Ballistic Cannon . | . . . . Launcher 4 | . . . 4 Special Weapon . | . . . . Impact Weapon . | . . . . Slashing Weapon . | . . . . Piercing Weapon . | . . . . Special Melee Weapon . | . . . . Unidentified Prototypes 1 | . . 1 . Parts Lost 14 | . . 7 7 Power 3 | . . 1 2 Propulsion 4 | . . 2 2 Utility 2 | . . 1 1 Weapon 5 | . . 3 2 Highest Loss Streak 7 | . . 7 3 To Critical Strikes . | . . . . Average Slot Usage (%) 66 | . 95 79 50 Engine 10 | . 14 9 10 Treads 1 | . . 1 1 Leg 10 | . 28 24 . Wheel 2 | . . . 4 Device 4 | . 10 9 1 Storage 16 | . 14 11 19 Energy Gun 5 | . 15 11 . Energy Cannon 4 | . 12 10 . Launcher 7 | . . . 13 Naked Turns . | . . . . Heaviest Build 108 | 4 89 102 108 Greatest Support 40 | 20 20 40 40 Greatest Overweight (x) 34 | . 4 4 34 Average Overweight (x) 3 | . 1 3 6 Largest Inventory Capacity 25 | 5 25 25 25 Average Capacity 21 | 5 16 25 23 Most Carried 15 | 5 12 14 15 Average Carried 9 | 3 8 12 8 Final Capacity 25 | 5 25 25 15 Final Carried 15 | 5 11 9 15 Class Distribution -------------------- 100% | Mutant Dominant Class ---------------- Mutant | -10/Materials Mutant | -9/Materials Mutant | -9/Storage Resources | -11 -10 -9 -9 ----------- Run | Scr Mat Mat Sto Matter Collected 687 | 222 68 103 294 Remotely . | . . . . Salvage Created 797 | . 40 244 513 Parts 50 | . 3 14 33 Haulers Intercepted 2 | . . . 2 Recyclers Shooed . | . . . . Parts Field Recycled . | . . . . Retrieved Matter . | . . . . Parts Self-Destructed . | . . . . Prevented . | . . . . Kills | -11 -10 -9 -9 ------- Run | Scr Mat Mat Sto Combat Hostiles Destroyed 18 | . 1 5 12 Guns 1 | . . 1 . Cannons 5 | . 1 4 . AOE 12 | . . . 12 Classes Destroyed 10 | . 1 3 6 Worker 3 | . . . 3 Builder 3 | . . . 3 Hauler 2 | . . . 2 Recycler 2 | . . . 2 Mechanic 1 | . . . 1 Operator 1 | . . 1 . Watcher 1 | . . . 1 Grunt 12 | . 1 3 8 Duelist 1 | . . 1 . Sentry 5 | . . 1 4 Best Kill Streak 9 | . 1 2 9 Combat Bots Only 4 | . 1 2 4 Max Kills in Single Turn 3 | . 1 1 3 Gunslinging . | . . . . Exploded 2 | . . . 2 Melee . | . . . . Uniques/NPCs Destroyed . | . . . . Combat | -11 -10 -9 -9 -------- Run | Scr Mat Mat Sto Damage Taken 1783 | . . 797 986 Core 408 | . . 104 304 Absorbed by Shields . | . . . . Core Remaining (%) 100 | 100 100 . . Volleys Fired 64 | . 4 24 36 Largest 2 | . 2 2 2 Hottest 116 | . 100 116 63 Shots Fired 104 | . 8 47 49 Gun 28 | . 4 24 . Cannon 27 | . 4 23 . Launcher 49 | . . . 49 Special . | . . . . Kinetic . | . . . . Thermal 49 | . 4 45 . Explosive 49 | . . . 49 Electromagnetic 6 | . 4 2 . Robot Hit Streak 9 | . 2 6 9 Robot Miss Streak 3 | . 2 3 3 Penetration Max . | . . . . Secondary Targets . | . . . . Shots Hit Robots 49 | . 5 28 16 Core Hits 52 | . 1 12 39 Critical Kills . | . . . . Critical Parts Destroyed . | . . . . Critical Strikes . | . . . . Melee Attacks . | . . . . Impact . | . . . . Slashing . | . . . . Piercing . | . . . . Sneak Attacks . | . . . . Combat Hostiles . | . . . . Follow-up Attacks . | . . . . Damage Inflicted 2418 | . 89 409 1920 Guns 224 | . 54 170 . Cannons 263 | . 35 228 . Explosions 1871 | . . . 1871 Melee . | . . . . Ramming 60 | . . 11 49 Kinetic . | . . . . Thermal 420 | . 35 385 . Explosive 1871 | . . . 1871 Electromagnetic 67 | . 54 13 . Impact . | . . . . Slashing . | . . . . Piercing . | . . . . Highest Corruption . | . . . . Average Corruption . | . . . . Corruption Purged . | . . . . Corruption Blocked . | . . . . Overload Shots . | . . . . Overflow Damage 7 | . . . 7 Projectiles . | . . . . Explosions 7 | . . . 7 Melee . | . . . . Knockbacks . | . . . . Impact . | . . . . Kinetic . | . . . . Secondary . | . . . . Self-Inflicted Damage 242 | . . . 242 Shots 8 | . . . 8 Rammed 19 | . . 4 15 Targets Rammed 19 | . . 4 15 Kicked . | . . . . Crushed . | . . . . Highest Temperature 451 | . 78 451 14 Average Temperature 134 | . 44 165 6 Received Heat Transfer 462 | . . 159 303 Effects 5 | . . 5 . Damage (minor) 1 | . . 1 . Damage (major) 4 | . . 4 . Siege Activations . | . . . . Robots Corrupted . | . . . . Combat Hostiles . | . . . . Parts Fried . | . . . . Impact Corruptions . | . . . . Robots Melted . | . . . . Combat Hostiles . | . . . . Parts Melted 1 | . . 1 . Heat Transferred 928 | . 74 854 . Parts Sabotaged . | . . . . Parts Stolen . | . . . . Parts Stripped . | . . . . Power Chain Reactions . | . . . . Missiles Intercepted . | . . . . Alert | -11 -10 -9 -9 ------- Run | Scr Mat Mat Sto Peak Influence 693 | . 47 184 693 Initial 53 | . . 19 53 Average 218 | . 11 66 361 Maximum Alert Level 2 | . . . 2 Low Security (%) 50 | 100 100 100 13 Level 1 33 | . . . 59 Level 2 15 | . . . 26 Level 3 . | . . . . Level 4 . | . . . . Level 5 . | . . . . High Security . | . . . . Max Security . | . . . . Squads Dispatched 3 | . . 1 2 Investigation . | . . . . Extermination . | . . . . Reinforcement 3 | . . 1 2 Assault . | . . . . Garrison . | . . . . Intercept . | . . . . Searches Triggered . | . . . . Construction Impeded . | . . . . Haulers Reinforced . | . . . . Active Scanning Responses . | . . . . Cargo Convoy Interrupts . | . . . . Stealth | -11 -10 -9 -9 --------- Run | Scr Mat Mat Sto Distress Signals 5 | . 1 . 4 Communications Jammed . | . . . . Distress Signals . | . . . . Times Spotted 28 | . 2 10 16 Peak Tracking Total 4 | . 2 4 4 Tactical Retreats 2 | . . 2 . Traps | -11 -10 -9 -9 ------- Run | Scr Mat Mat Sto Traps Triggered 3 | . . . 3 Indirectly . | . . . . Trap Hack Attempts . | . . . . Triggered . | . . . . Disarmed 1 | . . . 1 Reprogrammed . | . . . . Reused . | . . . . Traps Extracted . | . . . . Installed . | . . . . Triggered . | . . . . Machines | -11 -10 -9 -9 ---------- Run | Scr Mat Mat Sto Machines Disabled 4 | . . . 4 Max in Single Turn 2 | . . . 2 Machines Sabotaged . | . . . . Garrisons Compromised . | . . . . Overloaded Fab Kills . | . . . . Hacking | -11 -10 -9 -9 --------- Run | Scr Mat Mat Sto Machines Accessed 4 | . 2 . 2 Terminals 4 | . 2 . 2 Fabricators . | . . . . Repair Stations . | . . . . Recycling Units . | . . . . Scanalyzers . | . . . . Garrison Access . | . . . . Total Hacks 11 | . 4 . 7 Successful 7 | . 3 . 4 Failed 4 | . 1 . 3 Catastrophic . | . . . . Database Lockouts . | . . . . Manual . | . . . . Terminals 11 | . 4 . 7 Fabricators . | . . . . Repair Stations . | . . . . Recycling Units . | . . . . Scanalyzers . | . . . . Garrison Access . | . . . . Terminal Hacks 7 | . 3 . 4 Record 1 | . 1 . . Prototype ID Bank 1 | . 1 . . Branch Access Points 1 | . . . 1 Locate Traps 1 | . . . 1 Disarm Traps 1 | . . . 1 Zone Layout 2 | . 1 . 1 Fabricator Hacks . | . . . . Repair Station Hacks . | . . . . Recycling Unit Hacks . | . . . . Scanalyzer . | . . . . Garrison Access Hacks . | . . . . Unauthorized Hacks . | . . . . Terminals . | . . . . Fabricators . | . . . . Repair Stations . | . . . . Recycling Units . | . . . . Scanalyzers . | . . . . Garrison Access . | . . . . Data Cores Recovered . | . . . . Used . | . . . . Hacking Detections 4 | . 2 . 2 Full Trace Events . | . . . . Feedback Events . | . . . . Feedback Blocked . | . . . . Robot Schematics Acquired . | . . . . Robots Built . | . . . . Authchips . | . . . . Time . | . . . . Total Robot Build Rating . | . . . . Part Schematics Acquired . | . . . . Parts Built . | . . . . Authchips . | . . . . Time . | . . . . Total Part Build Rating . | . . . . Parts Repaired . | . . . . Time . | . . . . Parts Recycled . | . . . . Recycled Matter . | . . . . Retrieved Matter . | . . . . Retrieved Components . | . . . . Parts Scanalyzed . | . . . . Part Schematics Acquired . | . . . . Parts Damaged . | . . . . Bothacking | -11 -10 -9 -9 ------------ Run | Scr Mat Mat Sto Used RIF Installer . | . . . . Robots Hacked . | . . . . Non-combat . | . . . . Combat . | . . . . Robot Hacks Applied . | . . . . Relay Couplers Released . | . . . . Fabnet Peak Effective % . | . . . . Robots Rewired . | . . . . Allies Hacked . | . . . . Hacks Repelled . | . . . . Allies | -11 -10 -9 -9 -------- Run | Scr Mat Mat Sto Total Allies . | . . . . Largest Group . | . . . . Highest-Rated Group . | . . . . Highest-Rated Ally . | . . . . Total Orders . | . . . . Ally Attacks . | . . . . Total Damage . | . . . . Kills . | . . . . Allies Corrupted . | . . . . Allies Melted . | . . . . Intel | -11 -10 -9 -9 ------- Run | Scr Mat Mat Sto Robot Analysis Total . | . . . . Derelict Logs Recovered . | . . . . Drone Launches 2 | . . . 2 Drone Recoveries 2 | . . . 2 Exploration | -11 -10 -9 -9 ------------- Run | Scr Mat Mat Sto Turns Passed 1750 | 67 392 302 989 Spaces Moved 543 | 50 189 60 244 Core 35 | 6 . . 29 Treads 19 | . . 1 18 Legs 292 | 44 189 59 . Wheels 197 | . . . 197 Hover . | . . . . Flight . | . . . . Fastest Speed 50 | 50 120 260 115 Average Speed 273 | 111 192 341 351 Slowest Speed 1750 | 120 400 400 1750 Overloaded Moves . | . . . . Propulsion Burnouts . | . . . . Robots Hopped . | . . . . Cave-ins Triggered . | . . . . Exploration Rate (%) 22 | 4 28 8 48 Regions Visited 3 Branch Regions 1 Pre-discovered Areas . | . . . . Known Exits Taken . | . . . . Unknown Exits Taken 3 | 1 1 1 . Scrap Searched . | . . . . Spaces Dug 6 | . . . 6 Terrain Destroyed 277 | . . . 277 Melee . | . . . . Projectile . | . . . . AOE 277 | . . . 277 Terrain Rammed . | . . . . Walls Destroyed . | . . . . Machines Disabled . | . . . . Actions | -11 -10 -9 -9 --------- Run | Scr Mat Mat Sto Total 694 | 60 211 101 322 Wait . | . . . . Move 540 | 49 188 59 244 Hop . | . . . . Pick Up 35 | 7 11 4 13 Fast Attach 2 | 2 . . . Attach 19 | 2 4 6 7 Detach . | . . . . Swap 8 | . 2 4 2 Drop 3 | . 2 . 1 Fire 64 | . 4 24 36 Melee . | . . . . Ram 15 | . . . 15 Kick . | . . . . Crush 4 | . . 4 . Escape Stasis 4 | . . . 4 Rewire . | . . . . Trap . | . . . . Miscellaneous . | . . . . Route ------- -11/Scrapyard -10/Materials -9/Materials -9/Storage (discovered 1 exit: Rec) History --------- Turn | Location | Event 4 | -11/Scrapyard | Discovered new exit (range 16) 68 | -11/Scrapyard | Entered Materials 255 | -10/Materials | Discovered new exit (range 14) 305 | -10/Materials | Build established: Mutant 460 | -10/Materials | Entered another Materials area 460 | -9/Materials | Evolved 2 slots: Propulsion x2 665 | -9/Materials | Discovered new exit (range 13) 762 | -9/Materials | Entered Storage 787 | -9/Storage | Lost 7 parts (1p2n1u3w) 900 | -9/Storage | Lost 3 parts (2n1w) 1434 | -9/Storage | Identified exit to Recycling 1460 | -9/Storage | Core integrity fell below 50% 1695 | -9/Storage | Core integrity fell below 20% 1751 | -9/Storage | Destroyed self with Mini Grenade Launcher Last Messages --------------- U-05 Engineer builds a Wall. The unstable cave ceiling collapses. U-05 Engineer lays Concrete. Acquired Beam Rifle. U-05 Engineer lays Concrete. K-01 Serf collects debris. Acquired 39 matter. U-05 Engineer builds a Wall. K-01 Serf collects debris. U-05 Engineer builds a Wall. The unstable cave ceiling collapses. K-01 Serf collects debris. U-05 Engineer builds a Wall. K-01 Serf collects debris. Triggered Explosive Trap. An explosion rips through the floor. Connecting with Door Terminal... Door Terminal disabled. Terminal disabled. The unstable cave ceiling collapses. Map ----- +----------------------------------------------------+ | | | | | | | | | | | | | | | | | | | | | | | | | ???????##############???????????? | | ???????# #??????????? | | ???????# ! #??????????? | | ???????# #??????????? | | ???????# * ! #??????????? | | ????????? ##?????????? | | ???????????? [ ###???????? | | ???????????#+### # "???????? | | ???????????# "?>?????? | | ???????????# "???????? | | ???????????# # # "#### #?? | | ???????????# ## # # #?? | | ???????????+ ### # #?? | | ???????????# #?# ## @ #???? | | ???????????# #?# ## Y#? | | ???????##### ## # """ """ ##? | | ??????## # # """ """ #?? | | ??????#T # T + """ """ #?? | | ??????##"## # # #?? | | ??????# # ###### #?? | | ??????# # #????#/ ??? | | ??##### # #?#### ???? | | ### # # ### #######???? | | # # # ## ##???? | | ## # """ "#???? | | ######### #### "" T#???? | | = # "" "#???? | | + ##???? | | # " #????? | | [# ######## # #????? | | # # # #????? | | # + ### # ####### | | # =] # ## # # # | | # = # ## # | | # + # | | # ##+##### # # | | # ## T# ## ###### | | # ##"####### ### #????? | +----------------------------------------------------+ Best States ------------- Heat Dissipation 28 Energy Generation 10 Energy Capacity 250 Matter Stores 300 Matter Capacity 300 Sight Range 16 Terrain Scan Density 10 Evasion (%) 50 Recoil Reduction 2 Item Schematics ----------------- None Robot Schematics ------------------ None Fabricated ------------ Nothing Alien Tech Used ----------------- None Achievements -------------- None Challenges ------------ None Game ------ Seed HardcellSupersonicBuckler Manual? 0 Play Time 00:21:07 Cumulative 13.8 hours Start 2022.04.13 @ 16:54:33 End 2022.04.13 @ 17:22:07 Sessions 1 Manual Loads 0 Difficulty Rogue Special Mode None Game No. 15 Rogue 6 Adventurer 2 Explorer 7 Win Type - Total 0 Types 0/0/0/0/0/0/0/0/0 Lore% 6 Gallery% 19 Achievement% 18 Wizard Run 0 Options --------- ASCII 0 Keyboard 0 Movement Mouse Keybinds 0 Fullscreen 1 Font 18/TerminusBold Map View 76x50 Tactical HUD 0 Map Filters NONE Filters NONE Steam 1 RUN: 86a9a2f7-327c-47fe-a2b5-752360a846a2